Cogmind - Beta 10.2 @@@ ROGUE MODE // 2022.02.26 @ 17:03:44 Player: Dendrocnid Result: Self-destructed Performance ------------- Evolutions (8) 4000 Regions Visited (15) 3000 Robots Destroyed (80) 400 Value Destroyed (2590) 2590 Prototype IDs (12) 240 Alien Tech Used (0) 0 Bonus (558) 558 TOTAL SCORE: 10788 Bonus ------- Follower Combat Kills 258 Aligned with FarCom 300 Cogmind --------- Core Integrity 323/1450 Matter 220/300 Energy 100/100 System Corruption 9% Temperature Cool (0) Movement Core (50) Location -2/Research Parts ------- > --- POWER (3) -------- (None) > --- PROPULSION (7) --- (None) > --- UTILITY (11) ----- Advanced Signal Interpreter Advanced Target Analyzer Improved Armor Integrity Analyzer Advanced Hacking Suite > --- WEAPON (2) ------- (None) > --- INVENTORY (4) ---- Micro Nuclear Core Light Quantum Reactor Rocket Launcher Katana Peak State ------------ > --- POWER ------------ Micro Fission Core Light Quantum Reactor > --- PROPULSION ------- Biometal Leg Biometal Leg Biometal Leg Centrium Leg Improved Antigrav System > --- UTILITY ---------- Medium Storage Unit Advanced Visual Processing Unit Advanced Signal Interpreter Advanced Target Analyzer Improved Armor Integrity Analyzer Improved Core Shielding Hacking Suite Improved Hacking Suite Advanced Hacking Suite > --- WEAPON ----------- KE Penetrator KE Penetrator > --- INVENTORY -------- Micro Nuclear Core Cooled Fission Core Light Quantum Reactor Rocket Launcher Advanced Datajack Katana Power Sword Enhanced Force Lance [Rating: 109] Favorites ----------- Power Light Nuclear Core Engine Ion Engine Power Core Light Nuclear Core Reactor Antimatter Reactor Propulsion Xenon Bombardment Thruster Treads Light Treads Leg Aluminum Leg Wheel Wheel Hover Unit Improved Antigrav System Flight Unit Xenon Bombardment Thruster Utility Medium Storage Unit Device Advanced Weight Redist. System Storage Medium Storage Unit Processor Advanced Visual Processing Unit Hackware Hacking Suite Protection Light Armor Plating Weapon Heavy Assault Rifle Energy Gun Heavy EM Pulse Gun Ballistic Gun Heavy Assault Rifle Launcher Grenade Launcher Impact Weapon Heavy Flail Slashing Weapon Katana Piercing Weapon Enhanced Force Lance Special Melee Weapon Improved Datajack Build | -11 -10 -10 -9 -9 -9 -8 -8 -7 -7 -7 -6 -5 -4 -3 -2 ------- Run | Scr Mat Min Mat Min Exi Min Mat Fac Was Fac Fac Fac Fac Res Res Slots Evolved 16 | . . . 2 . . . 2 2 . . 2 2 2 2 2 Power 2 | . . . . . . . . 1 . . . . . 1 . Propulsion 5 | . . . 1 . . . 1 . . . . 1 1 1 . Utility 9 | . . . 1 . . . 1 1 . . 2 1 1 . 2 Weapon . | . . . . . . . . . . . . . . . . Parts Attached 149 | 6 3 . 28 3 6 5 31 8 . 7 7 11 5 9 20 Power 36 | 1 1 . 5 . . 2 5 3 . 4 5 2 2 4 2 Engine 13 | 1 . . 5 . . 2 1 2 . . 2 . . . . Core 17 | . 1 . . . . . 4 1 . 2 2 2 1 3 1 Reactor 6 | . . . . . . . . . . 2 1 . 1 1 1 Propulsion 40 | 2 1 . 8 1 . 1 8 2 . 3 . 4 1 2 7 Treads 8 | . . . 5 1 . 1 1 . . . . . . . . Leg 8 | . . . 2 . . . 2 . . . . . . . 4 Wheel 5 | 2 1 . 1 . . . 1 . . . . . . . . Hover 3 | . . . . . . . . . . . . . . . 3 Flight 16 | . . . . . . . 4 2 . 3 . 4 1 2 . Utility 39 | 1 1 . 7 . 6 . 8 2 . . 1 4 2 2 5 Device 10 | . . . . . 1 . 2 1 . . 1 2 2 . 1 Storage 13 | 1 . . 5 . 5 . 1 1 . . . . . . . Processor 4 | . . . . . . . 2 . . . . . . . 2 Hackware 5 | . . . . . . . . . . . . 2 . 2 1 Protection 7 | . 1 . 2 . . . 3 . . . . . . . 1 Artifact . | . . . . . . . . . . . . . . . . Weapon 34 | 2 . . 8 2 . 2 10 1 . . 1 1 . 1 6 Energy Gun 4 | . . . 3 . . . 1 . . . . . . . . Energy Cannon . | . . . . . . . . . . . . . . . . Ballistic Gun 15 | 2 . . 4 1 . 1 4 . . . . . . . 3 Ballistic Cannon . | . . . . . . . . . . . . . . . . Launcher 4 | . . . 1 1 . 1 1 . . . . . . . . Special Weapon . | . . . . . . . . . . . . . . . . Impact Weapon 1 | . . . . . . . 1 . . . . . . . . Slashing Weapon 6 | . . . . . . . 3 1 . . . 1 . . 1 Piercing Weapon 3 | . . . . . . . . . . . . . . 1 2 Special Melee Weapon 1 | . . . . . . . . . . . 1 . . . . Unidentified Prototypes 4 | . . . 1 . 1 . . 1 . . . 1 . . . Parts Lost 55 | . . . 11 1 . 6 10 . . . . . 1 1 25 Power 9 | . . . 1 . . 2 3 . . . . . . . 3 Propulsion 22 | . . . 4 1 . 2 4 . . . . . . 1 10 Utility 14 | . . . 2 . . . 2 . . . . . 1 . 9 Weapon 10 | . . . 4 . . 2 1 . . . . . . . 3 Highest Loss Streak 12 | . . . 2 1 . 4 5 . . . . . 1 1 12 Average Slot Usage (%) 90 | . 87 100 96 99 99 85 91 83 92 92 80 87 87 89 72 Engine 5 | . 9 . 7 11 11 10 1 7 7 7 . . . . . Core 4 | . 4 14 3 . . . 6 7 7 7 6 5 5 9 5 Reactor 1 | . . . . . . . . . . . 5 5 5 4 3 Treads 9 | . . . 16 21 22 23 9 . . . . . . . . Leg 3 | . . . 6 . . . 12 . . . . . . . 5 Wheel 7 | . 28 28 9 11 11 1 6 . . . . . . . . Flight 8 | . . . . . . . 2 30 30 30 26 26 26 28 13 Device 5 | . . . . . . . . 13 15 15 13 17 19 14 8 Storage 17 | . 14 14 19 33 32 33 25 . 7 7 6 5 5 4 3 Processor 4 | . . . . . . . . 15 15 15 13 11 10 9 9 Hackware 2 | . . . . . . . . . . . . 7 10 13 13 Protection 3 | . 2 14 12 . . . 7 . . . . . . . . Energy Gun 1 | . . . 10 . . . . . . . . . . . . Ballistic Gun 10 | . 28 28 11 22 22 13 9 . . . . . . . 3 Slashing Weapon 2 | . . . . . . . 5 7 7 7 6 5 5 2 . Naked Turns . | . . . . . . . . . . . . . . . . Heaviest Build 100 | 12 15 15 38 38 94 94 100 29 29 29 36 44 45 53 53 Greatest Support 114 | 20 20 20 40 12 12 60 40 30 30 35 35 50 57 66 114 Greatest Overweight (x) 7 | . . . 3 3 7 7 7 . . . 1 1 . . 7 Average Overweight (x) . | . . . 1 3 3 2 2 . . . . . . . . Largest Inventory Capacity 26 | 6 6 6 16 16 26 26 26 8 8 8 8 8 8 8 8 Average Capacity 13 | 5 6 6 11 16 18 26 24 4 8 8 8 8 8 8 7 Most Carried 26 | 5 6 6 12 14 18 17 26 4 6 8 8 8 8 8 8 Average Carried 10 | 1 5 6 8 11 15 14 19 3 5 7 7 7 6 7 7 Final Capacity 26 | 6 6 6 16 16 26 26 8 8 8 8 8 8 8 8 4 Final Carried 17 | 5 6 6 11 14 17 15 5 4 6 8 8 8 8 7 4 Class Distribution -------------------- 29% | Scavenger-Mutant 21% | Mutant 15% | Hacker-Sprinter 14% | Hauler-Mutant 12% | Sprinter 3% | Hacker-Mutant Dominant Class ---------------- Mutant | -10/Materials Mutant | -10/Mines Mutant | -9/Materials Scavenger-Mutant | -9/Mines Scavenger-Mutant | -9/Exiles Hauler-Mutant | -8/Mines Scavenger-Mutant | -8/Materials Sprinter | -7/Factory Sprinter | -7/Waste Sprinter | -7/Factory Sprinter | -6/Factory Hacker-Sprinter | -5/Factory Hacker-Sprinter | -4/Factory Hacker-Sprinter | -3/Research Hacker-Sprinter | -2/Research Resources | -11 -10 -10 -9 -9 -9 -8 -8 -7 -7 -7 -6 -5 -4 -3 -2 ----------- Run | Scr Mat Min Mat Min Exi Min Mat Fac Was Fac Fac Fac Fac Res Res Matter Collected 2503 | 231 133 . 592 185 10 184 304 . 205 67 123 110 30 27 302 Remotely . | . . . . . . . . . . . . . . . . Salvage Created 3360 | . 241 . 1353 234 . 197 798 . . 26 . . . 27 484 Parts 229 | . 16 . 99 18 . 8 45 . . 1 . . . 5 37 Haulers Intercepted 6 | . . . 4 . . . 2 . . . . . . . . Recyclers Shooed 3 | . 1 . 1 . . . 1 . . . . . . . . Parts Field Recycled . | . . . . . . . . . . . . . . . . Retrieved Matter . | . . . . . . . . . . . . . . . . Parts Self-Destructed . | . . . . . . . . . . . . . . . . Prevented . | . . . . . . . . . . . . . . . . Kills | -11 -10 -10 -9 -9 -9 -8 -8 -7 -7 -7 -6 -5 -4 -3 -2 ------- Run | Scr Mat Min Mat Min Exi Min Mat Fac Was Fac Fac Fac Fac Res Res Combat Hostiles Destroyed 67 | . 7 . 26 10 . 4 14 . . . . . . . 6 Melee 7 | . . . . . . . 5 . . . . . . . 2 Guns 52 | . 7 . 26 6 . 4 7 . . . . . . . 2 AOE 8 | . . . . 4 . . 2 . . . . . . . 2 Classes Destroyed 13 | . 3 . 5 2 . 1 1 . . . . . . . 1 Worker 4 | . . . 2 . . . 1 . . . . . . . 1 Tunneler 2 | . . . . 1 . . 1 . . . . . . . . Hauler 6 | . . . 4 . . . 2 . . . . . . . . Recycler 1 | . . . . . . . 1 . . . . . . . . Operator 3 | . 1 . . . . . . . . 1 . . . 1 . Watcher 1 | . . . 1 . . . . . . . . . . . . Swarmer 16 | . 3 . 7 4 . . 2 . . . . . . . . Grunt 23 | . 4 . 11 . . 2 6 . . . . . . . . Duelist 3 | . . . 2 . . 1 . . . . . . . . . Sentry 12 | . . . 6 2 . . 4 . . . . . . . . Hunter 5 | . . . . . . 1 2 . . . . . . . 2 Programmer 4 | . . . . . . . . . . . . . . . 4 Assembled 4 | . . . . 4 . . . . . . . . . . . Best Kill Streak 7 | . 6 . 7 4 . 2 5 . . 1 . . . 1 2 Combat Bots Only 7 | . 3 . 7 4 . 2 5 . . . . . . . 2 Max Kills in Single Turn 3 | . 1 . 2 2 . 1 3 . . 1 . . . 1 2 Gunslinging 1 | . . . 1 . . . 1 . . . . . . . . Exploded 2 | . . . . 2 . . 2 . . . . . . . 2 Melee 1 | . . . . . . . 1 . . . . . . . 1 Uniques/NPCs Destroyed . | . . . . . . . . . . . . . . . . Combat | -11 -10 -10 -9 -9 -9 -8 -8 -7 -7 -7 -6 -5 -4 -3 -2 -------- Run | Scr Mat Min Mat Min Exi Min Mat Fac Was Fac Fac Fac Fac Res Res Damage Taken 7918 | . 208 . 1361 401 . 547 1637 . . . . 144 133 134 3353 Core 2041 | . 32 . 198 43 . 90 414 . . . . 45 33 59 1127 Absorbed by Shields 26 | . . . . . . . . . . . . . 26 . . Core Remaining (%) 79 | 100 . 87 . . . 17 24 . . 100 100 95 97 95 . Volleys Fired 241 | . 27 . 109 24 . 26 33 . . . . . . . 22 Largest 2 | . 2 . 2 2 . 2 2 . . . . . . . 2 Hottest 91 | . 40 . 68 46 . 46 91 . . . . . . . 66 Shots Fired 461 | . 54 . 216 44 . 42 63 . . . . . . . 42 Gun 454 | . 54 . 215 40 . 42 61 . . . . . . . 42 Cannon . | . . . . . . . . . . . . . . . . Launcher 7 | . . . 1 4 . . 2 . . . . . . . . Special . | . . . . . . . . . . . . . . . . Kinetic 342 | . 54 . 113 40 . 42 51 . . . . . . . 42 Thermal 10 | . . . . . . . 10 . . . . . . . . Explosive 7 | . . . 1 4 . . 2 . . . . . . . . Electromagnetic 102 | . . . 102 . . . . . . . . . . . . Robot Hit Streak 21 | . 10 . 14 19 . 21 8 . . . . . . . 7 Robot Miss Streak 6 | . 6 . 6 2 . 2 2 . . . . . . . 3 Penetration Max 1 | . . . . . . . 1 . . . . . . . . Secondary Targets 10 | . 1 . 4 . . 2 3 . . . . . . . . Max Gunslinging Chain 1 | . 1 . 1 . . 1 1 . . . . . . . . Shots Hit Robots 331 | . 27 . 141 31 . 32 58 . . 2 2 3 1 1 33 Core Hits 133 | . 18 . 46 16 . 13 26 . . 1 . . 1 1 11 Critical Hits 8 | . 1 . 2 . . 1 . . . 1 . . . . 3 Critical Kills 3 | . 1 . . . . . . . . 1 . . . . 1 Critical Parts Destroyed 5 | . . . 2 . . 1 . . . . . . . . 2 Melee Attacks 114 | . . . . . . . 19 10 . 6 2 10 20 16 31 Impact 2 | . . . . . . . 2 . . . . . . . . Slashing 73 | . . . . . . . 17 10 . 6 1 10 20 6 3 Piercing 38 | . . . . . . . . . . . . . . 10 28 Sneak Attacks 3 | . . . . . . . 1 . . . 1 1 . . . Combat Hostiles 1 | . . . . . . . . . . . 1 . . . . Follow-up Attacks 1 | . . . . . . . 1 . . . . . . . . Damage Inflicted 6548 | . 344 . 2026 612 . 391 1679 . . 123 60 212 38 55 1008 Guns 4442 | . 344 . 1982 385 . 378 815 . . . . . . . 538 Cannons . | . . . . . . . . . . . . . . . . Explosions 572 | . . . 33 227 . . 312 . . . . . . . . Melee 1495 | . . . . . . . 537 . . 123 60 212 38 55 470 Ramming 39 | . . . 11 . . 13 15 . . . . . . . . Kinetic 3460 | . 344 . 1113 385 . 378 702 . . . . . . . 538 Thermal 146 | . . . 33 . . . 113 . . . . . . . . Explosive 539 | . . . . 227 . . 312 . . . . . . . . Electromagnetic 869 | . . . 869 . . . . . . . . . . . . Impact 36 | . . . . . . . 36 . . . . . . . . Slashing 1048 | . . . . . . . 501 . . 123 60 212 38 . 114 Piercing 411 | . . . . . . . . . . . . . . 55 356 Highest Corruption 9 | . . . 2 2 2 2 . . . . . . 2 . 9 Average Corruption 2 | . . . 2 2 2 2 . . . . . . 1 . 7 Corruption Purged . | . . . . . . . . . . . . . . . . Effects 40 | . . . 9 7 5 5 . . . . . . . . 14 Message Errors 14 | . . . 3 2 5 2 . . . . . . . . 2 Matter Fused 2 | . . . . . . . . . . . . . . . 2 Energy Discharges 7 | . . . 1 3 . 1 . . . . . . . . 2 Parts Rejected 2 | . . . . . . . . . . . . . . . 2 Data Loss (minor) 6 | . . . 3 1 . 1 . . . . . . . . 1 Data Loss (major) 1 | . . . . . . . . . . . . . . . 1 Misfires 1 | . . . . . . . . . . . . . . . 1 Targeting Errors 5 | . . . 2 1 . 1 . . . . . . . . 1 Weapon Failures 2 | . . . . . . . . . . . . . . . 2 Overload Shots . | . . . . . . . . . . . . . . . . Overflow Damage 62 | . . . 4 . . . . . . 33 25 . . . . Projectiles . | . . . . . . . . . . . . . . . . Explosions 4 | . . . 4 . . . . . . . . . . . . Melee 58 | . . . . . . . . . . 33 25 . . . . Knockbacks . | . . . . . . . . . . . . . . . . Impact . | . . . . . . . . . . . . . . . . Kinetic . | . . . . . . . . . . . . . . . . Secondary . | . . . . . . . . . . . . . . . . Self-Inflicted Damage 101 | . . . 42 59 . . . . . . . . . . . Shots 3 | . . . 1 2 . . . . . . . . . . . Rammed 3 | . . . 2 . . 1 . . . . . . . . . Targets Rammed 4 | . . . 2 . . 1 1 . . . . . . . . Kicked 1 | . . . . . . . 1 . . . . . . . . Crushed . | . . . . . . . . . . . . . . . . Highest Temperature 303 | . 10 . 246 10 . 15 303 . . 2 1 95 . 219 255 Average Temperature 56 | . 7 . 62 10 . 7 86 . . 2 1 22 . 88 79 Received Heat Transfer 1302 | . 48 . 333 183 . 189 459 . . . . 27 . 18 45 Siege Activations . | . . . . . . . . . . . . . . . . Robots Corrupted 1 | . . . 1 . . . . . . . . . . . . Combat Hostiles . | . . . . . . . . . . . . . . . . Parts Fried 6 | . . . 4 . . . . . . . . . . . 2 Impact Corruptions . | . . . . . . . . . . . . . . . . Robots Melted . | . . . . . . . . . . . . . . . . Combat Hostiles . | . . . . . . . . . . . . . . . . Parts Melted . | . . . . . . . . . . . . . . . . Heat Transferred 309 | . . . 50 . . . 259 . . . . . . . . Parts Sabotaged . | . . . . . . . . . . . . . . . . Parts Stolen . | . . . . . . . . . . . . . . . . Parts Stripped . | . . . . . . . . . . . . . . . . Power Chain Reactions 1 | . . . 1 . . . . . . . . . . . . Missiles Intercepted . | . . . . . . . . . . . . . . . . Alert | -11 -10 -10 -9 -9 -9 -8 -8 -7 -7 -7 -6 -5 -4 -3 -2 ------- Run | Scr Mat Min Mat Min Exi Min Mat Fac Was Fac Fac Fac Fac Res Res Peak Influence 592 | . 185 25 384 274 . 60 267 168 5 143 245 592 339 393 164 Initial 238 | . . 25 9 149 . . . 63 . 4 70 119 238 172 105 Average 147 | . 50 25 224 196 . 19 82 89 . 73 121 360 305 292 104 Maximum Alert Level 2 | . . . 1 1 . . 1 . . . 1 2 1 1 . Low Security (%) 67 | 100 100 100 31 49 . 100 83 100 100 100 78 38 . 10 100 Level 1 29 | . . . 68 50 . . 16 . . . 21 2 100 89 . Level 2 3 | . . . . . . . . . . . . 59 . . . Level 3 . | . . . . . . . . . . . . . . . . Level 4 . | . . . . . . . . . . . . . . . . Level 5 . | . . . . . . . . . . . . . . . . High Security . | . . . . . . . . . . . . . . . . Max Security . | . . . . . . . . . . . . . . . . Squads Dispatched 19 | . . . 2 . . . 4 1 . 2 1 6 1 . 2 Investigation 3 | . . . . . . . . 1 . . 1 1 . . . Extermination 2 | . . . . . . . . . . . . . . . 2 Reinforcement 8 | . . . 2 . . . 1 . . 2 . 2 1 . . Assault . | . . . . . . . . . . . . . . . . Garrison 6 | . . . . . . . 3 . . . . 3 . . . Intercept . | . . . . . . . . . . . . . . . . Construction Impeded 1 | . . . . . . . . . . . . 1 . . . Haulers Reinforced 2 | . . . . . . . . . . 1 . 1 . . . Stealth | -11 -10 -10 -9 -9 -9 -8 -8 -7 -7 -7 -6 -5 -4 -3 -2 --------- Run | Scr Mat Min Mat Min Exi Min Mat Fac Was Fac Fac Fac Fac Res Res Distress Signals 8 | . 1 . 2 . . . 1 1 . . . 1 . 1 1 Communications Jammed . | . . . . . . . . . . . . . . . . Distress Signals . | . . . . . . . . . . . . . . . . Times Spotted 139 | . 13 . 38 12 . 4 23 3 . 3 4 8 7 10 14 Peak Tracking Total 7 | . 3 . 6 4 . 3 5 4 . 1 3 4 4 4 7 Tactical Retreats 9 | . . . 3 1 . . 1 1 . . . 2 . 1 . Traps | -11 -10 -10 -9 -9 -9 -8 -8 -7 -7 -7 -6 -5 -4 -3 -2 ------- Run | Scr Mat Min Mat Min Exi Min Mat Fac Was Fac Fac Fac Fac Res Res Traps Triggered 7 | . . . . . . . . 3 . . . . 2 . 2 Indirectly . | . . . . . . . . . . . . . . . . Trap Hack Attempts . | . . . . . . . . . . . . . . . . Triggered . | . . . . . . . . . . . . . . . . Disarmed 7 | . 6 . . . . . 1 . . . . . . . . Reprogrammed 6 | . 4 . . . . . . . . . . 2 . . . Reused . | . . . . . . . . . . . . . . . . Traps Extracted . | . . . . . . . . . . . . . . . . Installed . | . . . . . . . . . . . . . . . . Triggered . | . . . . . . . . . . . . . . . . Machines | -11 -10 -10 -9 -9 -9 -8 -8 -7 -7 -7 -6 -5 -4 -3 -2 ---------- Run | Scr Mat Min Mat Min Exi Min Mat Fac Was Fac Fac Fac Fac Res Res Machines Disabled 6 | . . . 1 2 . . 3 . . . . . . . . Max in Single Turn 1 | . . . 1 1 . . 1 . . . . . . . . Garrison Access 3 | . . . . . . . . . . 1 . 1 . 1 . Machines Sabotaged . | . . . . . . . . . . . . . . . . Garrisons Compromised . | . . . . . . . . . . . . . . . . Overloaded Fab Kills . | . . . . . . . . . . . . . . . . Fab Network Shutdowns 1 | . . . . . . . . . . . . 1 . . . Hacking | -11 -10 -10 -9 -9 -9 -8 -8 -7 -7 -7 -6 -5 -4 -3 -2 --------- Run | Scr Mat Min Mat Min Exi Min Mat Fac Was Fac Fac Fac Fac Res Res Machines Accessed 34 | . 8 . 3 . . . 3 5 . 4 3 5 . 3 . Terminals 24 | . 8 . 2 . . . 3 4 . 2 1 2 . 2 . Fabricators 4 | . . . . . . . . 1 . 1 . 2 . . . Repair Stations . | . . . . . . . . . . . . . . . . Recycling Units . | . . . . . . . . . . . . . . . . Scanalyzers 2 | . . . 1 . . . . . . . 1 . . . . Garrison Access 4 | . . . . . . . . . . 1 1 1 . 1 . Total Hacks 85 | . 27 . 7 . . . 10 12 . 6 6 12 . 5 . Successful 57 | . 23 . 6 . . . 5 5 . 2 . 11 . 5 . Failed 28 | . 4 . 1 . . . 5 7 . 4 6 1 . . . Catastrophic 8 | . 1 . . . . . 2 1 . 3 1 . . . . Database Lockouts . | . . . . . . . . . . . . . . . . Manual 42 | . 9 . 6 . 1 . 7 10 . 3 2 2 . 2 . Terminals 67 | . 27 . 5 . . . 10 10 . 3 2 6 . 4 . Fabricators 8 | . . . . . . . . 2 . 1 . 5 . . . Repair Stations . | . . . . . . . . . . . . . . . . Recycling Units . | . . . . . . . . . . . . . . . . Scanalyzers 4 | . . . 2 . . . . . . . 2 . . . . Garrison Access 6 | . . . . . . . . . . 2 2 1 . 1 . Terminal Hacks 25 | . 15 . 1 . . . 2 1 . . . 4 . 2 . Record 1 | . . . . . . . . . . . . 1 . . . Part Schematic 1 | . . . . . . . . 1 . . . . . . . Robot Analysis 1 | . 1 . . . . . . . . . . . . . . Prototype ID Bank 4 | . 2 . . . . . . . . . . 1 . 1 . Branch Access Points 1 | . 1 . . . . . . . . . . . . . . Alert Level 2 | . 1 . . . . . . . . . . 1 . . . Unreport Threat 1 | . 1 . . . . . . . . . . . . . . Locate Traps 5 | . 4 . . . . . 1 . . . . . . . . Disarm Traps 2 | . 1 . . . . . 1 . . . . . . . . Reprogram Traps 2 | . 1 . . . . . . . . . . 1 . . . Zone Layout 5 | . 3 . 1 . . . . . . . . . . 1 . Fabricator Hacks 6 | . . . . . . . . 2 . . . 4 . . . Load Schematic 3 | . . . . . . . . 1 . . . 2 . . . Build 3 | . . . . . . . . 1 . . . 2 . . . Repair Station Hacks . | . . . . . . . . . . . . . . . . Recycling Unit Hacks . | . . . . . . . . . . . . . . . . Scanalyzer 2 | . . . 2 . . . . . . . . . . . . Insert Component 1 | . . . 1 . . . . . . . . . . . . Analyze 1 | . . . 1 . . . . . . . . . . . . Garrison Access Hacks 3 | . . . . . . . . . . 1 . 1 . 1 . Seal Access 3 | . . . . . . . . . . 1 . 1 . 1 . Unauthorized Hacks 20 | . 8 . 2 . . . 3 2 . 1 . 2 . 2 . Terminals 20 | . 8 . 2 . . . 3 2 . 1 . 2 . 2 . Botnet 20 | . 8 . 2 . . . 3 2 . 1 . 2 . 2 . Fabricators . | . . . . . . . . . . . . . . . . Repair Stations . | . . . . . . . . . . . . . . . . Recycling Units . | . . . . . . . . . . . . . . . . Scanalyzers . | . . . . . . . . . . . . . . . . Garrison Access . | . . . . . . . . . . . . . . . . Data Cores Recovered 1 | . 1 . . . . . . . . . . . . . . Used 1 | . 1 . . . . . . . . . . . . . . Hacking Detections 24 | . 3 . 1 . . . 3 5 . 4 3 3 . 2 . Full Trace Events 3 | . 1 . . . . . . 1 . . . 1 . . . Feedback Events . | . . . . . . . . . . . . . . . . Feedback Blocked . | . . . . . . . . . . . . . . . . Robot Schematics Acquired . | . . . . . . . . . . . . . . . . Robots Built . | . . . . . . . . . . . . . . . . Matter . | . . . . . . . . . . . . . . . . Time . | . . . . . . . . . . . . . . . . Total Robot Build Rating . | . . . . . . . . . . . . . . . . Part Schematics Acquired 2 | . . . 1 . . . . 1 . . . . . . . Parts Built 3 | . . . . . . . . 1 . . . 2 . . . Matter 478 | . . . . . . . . 186 . . . 292 . . . Time 171 | . . . . . . . . 99 . . . 72 . . . Total Part Build Rating 8 | . . . . . . . . 2 . . . 6 . . . Parts Repaired . | . . . . . . . . . . . . . . . . Time . | . . . . . . . . . . . . . . . . Parts Recycled . | . . . . . . . . . . . . . . . . Recycled Matter . | . . . . . . . . . . . . . . . . Retrieved Matter . | . . . . . . . . . . . . . . . . Retrieved Components . | . . . . . . . . . . . . . . . . Parts Scanalyzed 1 | . . . 1 . . . . . . . . . . . . Part Schematics Acquired 1 | . . . 1 . . . . . . . . . . . . Parts Damaged . | . . . . . . . . . . . . . . . . Bothacking | -11 -10 -10 -9 -9 -9 -8 -8 -7 -7 -7 -6 -5 -4 -3 -2 ------------ Run | Scr Mat Min Mat Min Exi Min Mat Fac Was Fac Fac Fac Fac Res Res Used RIF Installer . | . . . . . . . . . . . . . . . . Robots Hacked . | . . . . . . . . . . . . . . . . Non-combat . | . . . . . . . . . . . . . . . . Combat . | . . . . . . . . . . . . . . . . Robot Hacks Applied . | . . . . . . . . . . . . . . . . Relay Couplers Released . | . . . . . . . . . . . . . . . . Robots Rewired 1 | . . . . . . . . . . . 1 . . . . Allies Hacked . | . . . . . . . . . . . . . . . . Hacks Repelled . | . . . . . . . . . . . . . . . . Allies | -11 -10 -10 -9 -9 -9 -8 -8 -7 -7 -7 -6 -5 -4 -3 -2 -------- Run | Scr Mat Min Mat Min Exi Min Mat Fac Was Fac Fac Fac Fac Res Res Total Allies 21 | . . . . . . . . . 20 . 1 . . . . Largest Group 20 | . . . . . . . . . 20 3 4 4 . . . Highest-Rated Group 564 | . . . . . . . . . 564 63 83 83 . . . Highest-Rated Ally 35 | . . . . . . . . . 35 35 35 35 . . . Total Orders . | . . . . . . . . . . . . . . . . Ally Attacks 71 | . . . . . . . . . 6 14 27 24 . . . Total Damage 1660 | . . . . . . . . . 252 485 451 472 . . . Kills 13 | . . . . . . . . . . 5 5 3 . . . Allies Corrupted . | . . . . . . . . . . . . . . . . Allies Melted . | . . . . . . . . . . . . . . . . Intel | -11 -10 -10 -9 -9 -9 -8 -8 -7 -7 -7 -6 -5 -4 -3 -2 ------- Run | Scr Mat Min Mat Min Exi Min Mat Fac Was Fac Fac Fac Fac Res Res Robot Analysis Total 1 | . 1 . . . . . . . . . . . . . . Derelict Logs Recovered 4 | . . 3 . 1 . . . . . . . . . . . Drone Launches . | . . . . . . . . . . . . . . . . Drone Recoveries . | . . . . . . . . . . . . . . . . Exploration | -11 -10 -10 -9 -9 -9 -8 -8 -7 -7 -7 -6 -5 -4 -3 -2 ------------- Run | Scr Mat Min Mat Min Exi Min Mat Fac Was Fac Fac Fac Fac Res Res Turns Passed 8917 | 49 611 356 1580 618 539 825 1207 430 46 230 309 532 393 410 782 Spaces Moved 9741 | 45 645 445 892 453 421 378 502 1208 119 407 754 1126 593 830 923 Core 4 | 2 . . . . . . . . . . . . . . 2 Treads 677 | . . . 267 . . 336 74 . . . . . . . . Legs 549 | . . . . . . . 349 . . . . . . . 200 Wheels 2689 | 43 645 445 625 453 421 42 15 . . . . . . . . Hover 11 | . . . . . . . . . . . . . . . 11 Flight 5811 | . . . . . . . 64 1208 119 407 754 1126 593 830 710 Fastest Speed 24 | 50 80 80 90 120 120 160 29 27 27 27 29 27 28 24 24 Average Speed 67 | 78 80 80 122 120 124 193 184 27 27 27 29 29 28 25 44 Slowest Speed 400 | 80 80 80 180 120 160 200 300 29 27 29 105 104 28 28 400 Overloaded Moves . | . . . . . . . . . . . . . . . . Propulsion Burnouts . | . . . . . . . . . . . . . . . . Robots Hopped 25 | . . . . . . . 1 3 . 1 1 7 4 2 6 Cave-ins Triggered . | . . . . . . . . . . . . . . . . Exploration Rate (%) 45 | 3 93 96 67 83 77 64 48 23 72 12 14 23 10 23 24 Regions Visited 15 Branch Regions 4 Pre-discovered Areas 4 | . . 3 . 1 . . . . . . . . . . . Known Exits Taken 7 | . 1 . . . . . 1 . . 1 1 1 1 1 . Unknown Exits Taken 6 | 1 . 1 1 1 1 1 . . . . . . . . . Scrap Searched 4 | . . 1 . 2 . 1 . . . . . . . . . Spaces Dug 69 | . . . . . . . 3 10 . 3 . 7 13 14 19 Terrain Destroyed 123 | . . . 12 27 . . 17 10 . 3 . 7 13 14 20 Melee 65 | . . . . . . . 3 10 . 3 . 7 13 14 15 Projectile 5 | . . . . . . . . . . . . . . . 5 AOE 53 | . . . 12 27 . . 14 . . . . . . . . Terrain Rammed . | . . . . . . . . . . . . . . . . Walls Destroyed . | . . . . . . . . . . . . . . . . Machines Disabled . | . . . . . . . . . . . . . . . . Actions | -11 -10 -10 -9 -9 -9 -8 -8 -7 -7 -7 -6 -5 -4 -3 -2 --------- Run | Scr Mat Min Mat Min Exi Min Mat Fac Was Fac Fac Fac Fac Res Res Total 11405 | 55 691 444 1155 482 434 432 684 1289 132 512 836 1304 784 993 1178 Wait 1004 | . 11 . 102 . . 21 65 20 10 81 67 151 155 139 182 Move 9677 | 44 644 444 891 452 420 377 499 1202 118 404 751 1111 584 825 911 Hop 25 | . . . . . . . 1 3 . 1 1 7 4 2 6 Pick Up 85 | 5 3 . 17 3 5 2 21 4 3 7 3 7 3 1 1 Fast Attach 46 | 6 2 . 4 1 1 1 8 2 . . . 3 1 2 15 Attach 38 | . . . 11 . . 4 7 3 . . 2 3 2 3 3 Detach 8 | . . . . . . . 2 . . . 2 . . 1 3 Swap 65 | . 1 . 13 2 5 . 16 3 . 7 5 5 2 4 2 Drop 53 | . 3 . 6 . 3 . 14 6 1 6 3 7 2 . 2 Fire 241 | . 27 . 109 24 . 26 33 . . . . . . . 22 Melee 112 | . . . . . . . 17 10 . 6 2 10 20 16 31 Ram 2 | . . . 2 . . . . . . . . . . . . Kick 1 | . . . . . . . 1 . . . . . . . . Crush 1 | . . . . . . 1 . . . . . . . . . Escape Stasis 47 | . . . . . . . . 36 . . . . 11 . . Rewire . | . . . . . . . . . . . . . . . . Trap . | . . . . . . . . . . . . . . . . Miscellaneous . | . . . . . . . . . . . . . . . . Route ------- -11/Scrapyard -10/Materials (discovered 5 exits: *Mat x3 / *Min x2) -10/Mines (discovered 2 exits: *Mat x2) -9/Materials (discovered 4 exits: *Mat x3 / [*Min]) -9/Mines -9/Exiles -8/Mines -8/Materials (discovered 2 exits: *Fac x2) -7/Factory -7/Waste -7/Factory (discovered 2 exits: *Fac / *Low) -6/Factory (discovered 2 exits: *Fac / *Low) -5/Factory -4/Factory -3/Research (discovered 2 exits: *Res / *Qua) -2/Research History --------- Turn | Location | Event 9 | -11/Scrapyard | Discovered new exit (range 15) 50 | -11/Scrapyard | Entered Materials 65 | -10/Materials | Identified exit to Mines 145 | -10/Materials | Discovered new exit (range 13) 317 | -10/Materials | Build established: Mutant 399 | -10/Materials | Discovered new exit (range 5) 516 | -10/Materials | Discovered new exit (range 7) 661 | -10/Materials | Entered Mines 825 | -10/Mines | Discovered new exit (range 10) 872 | -10/Mines | YI-UF0 nonchalantly dropped a Grenade Launcher on the ground 903 | -10/Mines | Learned location of Storage (-8) 1013 | -10/Mines | Discovered new exit (range 5) 1017 | -10/Mines | Entered Materials 1017 | -9/Materials | Evolved 2 slots: Propulsion x1, Utility x1 1385 | -9/Materials | Discovered new exit (range 10) 1639 | -9/Materials | Discovered new exit (range 15) 1998 | -9/Materials | Destroyed 7 combat bots 2252 | -9/Materials | Build established: Scavenger-Mutant 2374 | -9/Materials | Discovered new exit (range 11) 2471 | -9/Materials | Discovered new exit (range 16) 2597 | -9/Materials | Entered Mines 2600 | -9/Mines | Assembled infested the area 2682 | -9/Mines | Core integrity fell below 50% 2759 | -9/Mines | Learned Materials terminal intel 2911 | -9/Mines | Received a Rocket Launcher from a helpful Derelict 3211 | -9/Mines | Deemed a non-threat by the Exiles lab entrance 3211 | -9/Mines | Discovered new exit (range 5) 3215 | -9/Mines | Entered Exiles 3244 | -9/Exiles | Met 8R-AWN 3267 | -9/Exiles | Met EX-HEX 3372 | -9/Exiles | Met EX-DEC 3392 | -9/Exiles | Visited The Gauntlet 3492 | -9/Exiles | Met EX-BIN 3507 | -9/Exiles | Aligned with FarCom system 3508 | -9/Exiles | Given EX-Vault access code 3536 | -9/Exiles | Opened EX-Vault 3548 | -9/Exiles | Found Prototype Device 3549 | -9/Exiles | Identified Cloak of Protection 3585 | -9/Exiles | Warned to stay clear of 0b10 Research branches 3733 | -9/Exiles | Discovered new exit (range 14) 3754 | -9/Exiles | Entered Mines 3965 | -8/Mines | Core integrity fell below 20% 3970 | -8/Mines | Build established: Hauler-Mutant 3985 | -8/Mines | Lost 4 parts (1p1n2w) 4563 | -8/Mines | Discovered new exit (range 8) 4579 | -8/Mines | Entered Materials 4579 | -8/Materials | Evolved 2 slots: Propulsion x1, Utility x1 4580 | -8/Materials | Loaded intel: 11 terminal locations 4793 | -8/Materials | Lost 5 parts (2p2n1u) 5079 | -8/Materials | Build established: Scavenger-Mutant 5340 | -8/Materials | Discovered new exit (range 3) 5367 | -8/Materials | Core integrity fell below 50% 5398 | -8/Materials | Garrison activated, responded to threat 5722 | -8/Materials | Lost 3 parts (1n1u1w) 5783 | -8/Materials | Discovered new exit (range 12) 5785 | -8/Materials | Identified exit to Factory 5786 | -8/Materials | Entered Factory 5786 | -7/Factory | Evolved 2 slots: Power x1, Utility x1 5908 | -7/Factory | Fabricated Imp. Flight Unit (x1) 5926 | -7/Factory | Discovered new exit (range 20) 5931 | -7/Factory | Identified exit to Lower Caves 6158 | -7/Factory | Build established: Sprinter 6216 | -7/Factory | Sucked down chute 6216 | -7/Factory | Entered Waste 6217 | -7/Waste | Joined by Warlord forces that had cleared the area 6249 | -7/Waste | Discovered new exit (range 10) 6252 | -7/Waste | Identified exit to Factory 6260 | -7/Waste | A Compactor rumbled back to life 6260 | -7/Waste | Spotted C-40 Crusher 6262 | -7/Waste | Entered Factory 6262 | -7/Factory | Accompanied by 3 allies 6468 | -7/Factory | Discovered new exit (range 20) 6482 | -7/Factory | Discovered exit to Lower Caves (range 6) 6484 | -7/Factory | Identified exit to Factory 6492 | -7/Factory | Entered another Factory area 6492 | -6/Factory | Accompanied by 3 allies 6492 | -6/Factory | Evolved 2 slots: Utility x2 6636 | -6/Factory | Discovered new exit (range 8) 6638 | -6/Factory | Identified exit to Lower Caves 6742 | -6/Factory | Discovered new exit (range 19) 6755 | -6/Factory | Identified exit to Factory 6801 | -6/Factory | Entered another Factory area 6801 | -5/Factory | Accompanied by 4 allies 6801 | -5/Factory | Evolved 2 slots: Propulsion x1, Utility x1 6954 | -5/Factory | Fabricated Hacking Suite (x1) 7001 | -5/Factory | Fabricated Hacking Suite (x1) 7005 | -5/Factory | Local fabrication network quarantined 7104 | -5/Factory | Garrison activated, responded to threat 7307 | -5/Factory | Build established: Hacker-Sprinter 7332 | -5/Factory | Discovered new exit (range 5) 7333 | -5/Factory | Identified exit to Factory 7333 | -5/Factory | Entered another Factory area 7333 | -4/Factory | Evolved 2 slots: Propulsion x1, Utility x1 7724 | -4/Factory | Discovered new exit (range 8) 7725 | -4/Factory | Identified exit to Research 7726 | -4/Factory | Entered Research 7726 | -3/Research | Evolved 2 slots: Power x1, Propulsion x1 7947 | -3/Research | Found Enh. Force Lance 8109 | -3/Research | Discovered new exit (range 12) 8112 | -3/Research | Identified exit to Quarantine 8133 | -3/Research | Discovered new exit (range 14) 8136 | -3/Research | Identified exit to Research 8136 | -3/Research | Entered another Research area 8136 | -2/Research | Evolved 2 slots: Utility x2 8451 | -2/Research | Spotted B-90 Cyclops 8603 | -2/Research | Lost 11 parts (1p8n2u) 8908 | -2/Research | Core integrity fell below 50% 8918 | -2/Research | Self-destructed Last Messages --------------- 08894_ R-10 Processor collects Biometal Leg. 08894_ U-05 Engineer lays Concrete. 08897_ R-10 Processor collects Biometal Leg. 08897_ Biometal Leg destroyed. 08898_ U-05 Engineer lays Concrete. 08902_ System corrupted: Centrium Leg rejected. 08902_ R-10 Processor collects Centrium Leg. 08902_ Power Sword destroyed. 08903_ L-61 Swordsman suffers critical hit. 08903_ Destroyed Flexi-carbon Leg. 08903_ R-10 Processor collects KE Penetrator. 08907_ Imp. Core Shielding destroyed. 08909_ Med. Storage Unit destroyed. 08909_ Imp. Hacking Suite destroyed. 08909_ R-10 Processor collects Cld. Fission Core. 08912_ R-10 Processor collects Adv. Datajack. 08915_ Enh. Force Lance destroyed. 08915_ Hacking Suite destroyed. 08915_ Adv. Visual Processing Unit destroyed. 08916_ U-05 Engineer lays Concrete. Map ----- +----------------------------------------------------+ | ??????????????# """ #???###########+##?#+##### | | ??????????????# """ #???# # # | | ??????????????# #???# # + | | ??????????????# #???# # """ # | | ###################+######## # """ # | | + # """ # | | # ] # # | | / # # | | " """"""" """"" #w # """ # | | " """"""" """"" # # """ + | | " """"""" """"" # # """ # | | # = # + | | # # ## | | ############## """ #? | | s u #????????????# """ #? | | ss #????????????# """ #? | | s ########## #????????????# #? | | #????????# #????????????# #? | | #????????# ###########??###+#####? | | T #????????# # #????# #????? | | ] #????????# # #????# #????? | | ] ?????????# # ###### #????? | | ?????????# + * + #????? | | ## !!= ?????????# # ########????? | | ?# !!= !?????????# # #???????????? | | ?? !?? ?????????#Rl@u# #???????????? | | ??????????? ??????????# l R# #???????????? | | ??????????????????????# g ###########???????????? | | ??????????????????????# #?????????????????????? | | ??????????????????????# #?????????????????????? | | ??????????????????????# #?????????????????????? | | ??????????????????????# #?????????????????????? | | ??????????????????????# #?????????????????????? | | ?????????????????????? k#?????????????????????? | | ?????????????????????? #?????????????????????? | | ????????????????????? t #?????????????????????? | | ????????????????????? #?????????????????????? | | ?????????BB?????????### #?????????????????????? | | ?????????BB???????????#k #?????????????????????? | | ??????????????????????# #?????????????????????? | | ??????????????????????# #?????????????????????? | | ??????????????????????# ??????????????????????? | | ??????????????????????#w ??????????????????????? | | ??????????????????????# ??????????????????????? | | ??????????????????????? ??????????????????????? | | ?????????????????????????????????????????????????? | | ?????????????????????????????????????????????????? | | ?????????????????????????????????????????????????? | | ?????????????????????????????????????????????????? | | ?????????????????????????????????????????????????? | +----------------------------------------------------+ Best States ------------- Heat Dissipation 68 Energy Generation 50 Energy Capacity 645 Matter Stores 300 Matter Capacity 300 Sight Range 20 Terrain Scan Density 10 Cloak Strength 5 Additional Mass Support 9 Base Temperature (-) 100 Armor Coverage 300 Core Shielding 30 Phase Shifting 5 Evasion (%) 74 Target Analysis 8 Armor Integrity Analysis 50 Recoil Reduction 3 Offensive Hacking 46 Item Schematics ----------------- Imp. Flight Unit | -9/Materials | Scanalyzed Hacking Suite | -7/Factory | Hacked Robot Schematics ------------------ None Fabricated ------------ Imp. Flight Unit | x1 | -7/Factory Hacking Suite | x1 | -5/Factory Hacking Suite | x1 | -5/Factory Alien Tech Used ----------------- None Achievements -------------- None Challenges ------------ None Game ------ Seed ShockThrusterDeconstructor Manual? 0 Play Time 02:00:22 Cumulative 110.0 hours Start 2022.02.05 @ 14:36:39 End 2022.02.26 @ 17:03:44 Sessions 5 Manual Loads 0 Difficulty Rogue Special Mode None Game No. 180 Rogue 180 Adventurer 0 Explorer 0 Win Type - Total 0 Types 0/0/0/0/0/0/0/0/0 Lore% 29 Gallery% 49 Achievement% 40 Wizard Run 0 Options --------- ASCII 0 Keyboard 0 Movement Mouse Keybinds 0 Fullscreen 1 Font 18/SmallcapsGlow Map View 76x50 Tactical HUD 1 Map Filters NONE Filters NONE Steam 1 RUN: 46445407-00c1-4deb-8908-5b945f0be060